fUSD/lending_fUSD_20250823
["ID","MTS","AMOUNT","RATE_DAILY","PERIOD"]
[380999311,1755930747553,-15309.856525,0.00016112,2]
[380999312,1755930747563,-123594.35114565,0.00016114,2]
[380999313,1755930747572,-9999.99,0.00016116,2]
[380999314,1755930747582,-4672.98701713,0.00016116,2]
[380999315,1755930747592,-123594.35114565,0.00016118,2]
[380999316,1755930747601,-15309.856525,0.00016119,2]
[380999317,1755930747611,-6220.70473785,0.00016119,2]
[380999318,1755930747621,-123594.35114565,0.00016119,2]
[380999319,1755930747630,-8729.40758725,0.0001612,2]
[380999320,1755930747640,-164486.66564309,0.00016121,2]
[380999321,1755930747652,-123594.35114565,0.00016123,2]
[380999322,1755930747661,-2515.67845743,0.00016123,2]
[380999323,1755930747671,-2515.67845743,0.00016123,2]
[380999324,1755930747680,-162.31421646,0.00016124,2]
[380999325,1755930747691,-15309.856525,0.00016125,2]
[380999326,1755930747700,-4672.98701713,0.00016132,2]
[380999327,1755930747711,-6146.04472662,0.00016132,2]
[380999328,1755930747721,-4672.98701713,0.00016135,2]
[380999329,1755930747731,-852.22946767,0.00016135,2]
[380999330,1755930747741,-1000.0,0.00016135,2]
[380999331,1755930747750,-500.0,0.00016135,2]
[380999332,1755930747760,-492.68634693,0.00016136,2]
[380999333,1755930747769,-2515.67845743,0.00016137,2]
[380999334,1755930747779,-4672.98701713,0.00016138,2]
[380999335,1755930747788,-164486.66564309,0.00016138,2]
[380999336,1755930747798,-8729.40758725,0.00016139,2]
[380999337,1755930747807,-6220.70473785,0.00016139,2]
[380999338,1755930747817,-6220.70473785,0.00016139,2]
[380999339,1755930747827,-440.40030289,0.00016141,2]
[380999340,1755930747836,-2515.67845743,0.00016142,2]
[380999341,1755930747845,-6146.04472662,0.00016142,2]
[380999342,1755930747855,-6220.70473785,0.00016143,2]
[380999343,1755930747865,-852.22946767,0.00016144,2]
[380999344,1755930747876,-852.22946767,0.00016145,2]
[380999345,1755930747885,-2515.67845743,0.00016146,2]
[380999346,1755930747895,-162.63354178,0.00016148,2]
[380999347,1755930747905,-162.31421646,0.00016148,2]
[380999348,1755930747915,-852.22946767,0.00016149,2]
[380999349,1755930747926,-162.63354178,0.0001615,2]
[380999350,1755930747935,-15309.856525,0.00016151,2]
[380999351,1755930747945,-51919.93953385,0.00016155,2]
[380999352,1755930747955,-6220.70473785,0.00016158,2]
[380999353,1755930747965,-162.31421646,0.00016158,2]
[380999354,1755930747975,-6220.70473785,0.00016163,2]
[380999355,1755930747985,-400.0,0.00016164,2]
[380999356,1755930747995,-400.0,0.00016164,2]
[380999357,1755930748004,-400.0,0.00016164,2]
[380999358,1755930748014,-400.0,0.00016164,2]
[380999359,1755930748024,-400.0,0.00016164,2]
[380999360,1755930748034,-400.0,0.00016164,2]
[380999361,1755930748044,-582.01,0.00016164,2]
[380999362,1755930748054,-514.56,0.00016164,2]
[380999363,1755930748063,-704.41,0.00016164,2]
[380999364,1755930748073,-1531.46,0.00016164,2]
[380999365,1755930748082,-400.0,0.00016164,2]
[380999366,1755930748091,-400.0,0.00016164,2]
[380999367,1755930748101,-554.63,0.00016164,2]
[380999368,1755930748110,-877.84,0.00016164,2]
[380999369,1755930748120,-643.74,0.00016164,2]
[380999370,1755930748130,-400.0,0.00016164,2]
[380999371,1755930748139,-223.70901736,0.00016164,2]
[380999372,1755930748149,-400.0,0.00016164,2]
[380999373,1755930748160,-400.0,0.00016164,2]
[380999374,1755930748169,-400.0,0.00016164,2]
[380999375,1755930748179,-400.0,0.00016164,2]
[380999376,1755930748189,-400.0,0.00016164,2]
[380999377,1755930748198,-572.24,0.00016164,2]
[380999378,1755930748208,-400.0,0.00016164,2]
[380999379,1755930748218,-400.0,0.00016164,2]
[380999380,1755930748228,-743.91,0.00016164,2]
[380999381,1755930748238,-526.46,0.00016164,2]
[380999382,1755930748248,-400.0,0.00016164,2]
[380999383,1755930748257,-400.0,0.00016164,2]
[380999384,1755930748267,-400.0,0.00016164,2]
[380999385,1755930748280,-400.0,0.00016164,2]
[380999386,1755930748290,-434.64677177,0.00016164,2]
[380999387,1755930748300,-400.0,0.00016164,2]
[380999388,1755930748310,-749.52,0.00016164,2]
[380999389,1755930748319,-400.0,0.00016164,2]
[380999390,1755930748330,-400.0,0.00016164,2]
[380999391,1755930748340,-540.59,0.00016164,2]
[380999392,1755930748350,-410.49,0.00016164,2]
[380999393,1755930748359,-493.14,0.00016164,2]
[380999394,1755930748369,-920.84,0.00016164,2]
[380999395,1755930748380,-566.63,0.00016164,2]
[380999396,1755930748390,-400.0,0.00016164,2]
[380999397,1755930748400,-432.17,0.00016164,2]
[380999398,1755930748410,-382.99749656,0.00016164,2]
[380999399,1755930748419,-400.0,0.00016164,2]
[380999400,1755930748429,-740.84,0.00016164,2]
[380999401,1755930748438,-783.8,0.00016164,2]
[380999402,1755930748447,-604.31,0.00016164,2]
[380999403,1755930748457,-1133.06,0.00016164,2]
[380999404,1755930748467,-400.0,0.00016164,2]
[380999405,1755930748477,-517.07,0.00016164,2]
[380999406,1755930748487,-495.74,0.00016164,2]
[380999407,1755930748497,-400.0,0.00016164,2]
[380999408,1755930748506,-413.56,0.00016164,2]
[380999409,1755930748516,-400.0,0.00016164,2]
[380999410,1755930748526,-400.0,0.00016164,2]
[380999411,1755930748535,-400.0,0.00016164,2]
[380999412,1755930748545,-696.19,0.00016164,2]
[380999413,1755930748554,-448.63,0.00016164,2]
[380999414,1755930748563,-409.77,0.00016164,2]
[380999415,1755930748573,-400.0,0.00016164,2]
[380999416,1755930748582,-400.0,0.00016164,2]
[380999417,1755930748592,-400.0,0.00016164,2]
[380999418,1755930748602,-400.0,0.00016164,2]
[380999419,1755930748611,-741.34,0.00016164,2]
[380999420,1755930748621,-654.73,0.00016164,2]
[380999421,1755930748630,-412.9,0.00016164,2]
[380999422,1755930748640,-773.01,0.00016164,2]
[380999423,1755930748649,-400.0,0.00016164,2]
[380999424,1755930748663,-428.59,0.00016164,2]
[380999425,1755930748672,-400.0,0.00016164,2]
[380999426,1755930748681,-400.0,0.00016164,2]
[380999427,1755930748691,-439.05,0.00016164,2]
[380999428,1755930748700,-805.82,0.00016164,2]
[380999429,1755930748710,-400.0,0.00016164,2]
[380999430,1755930748720,-407.07,0.00016164,2]
[380999431,1755930748730,-733.47,0.00016164,2]
[380999432,1755930748739,-400.0,0.00016164,2]
[380999433,1755930748749,-400.28,0.00016164,2]
[380999434,1755930748760,-432.84,0.00016164,2]
[380999435,1755930748769,-834.46,0.00016164,2]
[380999436,1755930748780,-400.0,0.00016164,2]
[380999437,1755930748790,-400.0,0.00016164,2]
[380999438,1755930748799,-728.67,0.00016164,2]
[380999439,1755930748809,-400.0,0.00016164,2]
[380999440,1755930748820,-400.0,0.00016164,2]
[380999441,1755930748829,-400.0,0.00016164,2]
[380999442,1755930748839,-491.05,0.00016164,2]
[380999443,1755930748849,-482.83,0.00016164,2]
[380999444,1755930748861,-426.08,0.00016164,2]
[380999445,1755930748871,-718.23,0.00016164,2]
[380999446,1755930748881,-400.0,0.00016164,2]
[380999447,1755930748890,-414.75,0.00016164,2]
[380999448,1755930748900,-730.88,0.00016164,2]
[380999449,1755930748910,-525.23,0.00016164,2]
[380999450,1755930748919,-527.38565537,0.00016164,2]
[380999451,1755930748929,-656.34,0.00016164,2]
[380999452,1755930748939,-861.42,0.00016164,2]
[380999453,1755930748948,-628.73,0.00016164,2]
[380999454,1755930748957,-775.38,0.00016164,2]
[380999455,1755930748967,-400.0,0.00016164,2]
[380999456,1755930748977,-400.0,0.00016164,2]
[380999457,1755930748987,-404.23,0.00016164,2]
[380999458,1755930748996,-713.07,0.00016164,2]
[380999459,1755930749005,-452.56,0.00016164,2]
[380999460,1755930749014,-674.32,0.00016164,2]
[380999461,1755930749024,-400.0,0.00016164,2]
[380999462,1755930749033,-693.74,0.00016164,2]
[380999463,1755930749042,-400.0,0.00016164,2]
[380999464,1755930749051,-460.3,0.00016164,2]
[380999465,1755930749060,-400.0,0.00016164,2]
[380999466,1755930749070,-400.0,0.00016164,2]
[380999467,1755930749080,-400.0,0.00016164,2]
[380999468,1755930749090,-400.0,0.00016164,2]
[380999469,1755930749100,-400.0,0.00016164,2]
[380999470,1755930749109,-400.0,0.00016164,2]
[380999471,1755930749119,-651.66,0.00016164,2]
[380999472,1755930749128,-490.04,0.00016164,2]
[380999473,1755930749137,-423.85,0.00016164,2]
[380999474,1755930749147,-597.2,0.00016164,2]
[380999475,1755930749157,-655.44,0.00016164,2]
[380999476,1755930749167,-400.0,0.00016164,2]
[380999477,1755930749176,-400.0,0.00016164,2]
[380999478,1755930749185,-1022.82,0.00016164,2]
[380999479,1755930749194,-400.0,0.00016164,2]
[380999480,1755930749204,-470.46,0.00016164,2]
[380999481,1755930749221,-400.0,0.00016164,2]
[380999482,1755930749233,-444.53,0.00016164,2]
[380999483,1755930749243,-400.0,0.00016164,2]
[380999484,1755930749252,-400.0,0.00016164,2]
[380999485,1755930749262,-451.36,0.00016164,2]
[380999486,1755930749271,-649.5,0.00016164,2]
[380999487,1755930749281,-400.0,0.00016164,2]
[380999488,1755930749291,-636.13,0.00016164,2]
[380999489,1755930749305,-480.27,0.00016164,2]
[380999490,1755930749315,-400.0,0.00016164,2]
[380999491,1755930749325,-271.63990367,0.00016164,2]
[380999492,1755930749335,-600.17,0.00016164,2]
[380999493,1755930749346,-517.49,0.00016164,2]
[380999494,1755930749356,-466.17,0.00016164,2]
[380999495,1755930749365,-540.76,0.00016164,2]
[380999496,1755930749376,-753.31,0.00016164,2]
[380999497,1755930749386,-404.06,0.00016164,2]
[380999498,1755930749395,-597.64,0.00016164,2]
[380999499,1755930749405,-458.82,0.00016164,2]
[380999500,1755930749415,-404.41,0.00016164,2]
[380999501,1755930749425,-400.0,0.00016164,2]
[380999502,1755930749434,-420.73,0.00016164,2]
[380999503,1755930749445,-400.0,0.00016164,2]
[380999504,1755930749454,-400.0,0.00016164,2]
[380999505,1755930749463,-898.28,0.00016164,2]
[380999506,1755930749473,-400.0,0.00016164,2]
[380999507,1755930749482,-400.0,0.00016164,2]
[380999508,1755930749492,-433.34,0.00016164,2]
[380999509,1755930749501,-400.0,0.00016164,2]
[380999510,1755930749511,-813.43,0.00016164,2]
[380999511,1755930749520,-152.259471,0.00016164,2]
[380999512,1755930749529,-400.0,0.00016164,2]
[380999513,1755930749539,-400.0,0.00016164,2]
[380999514,1755930749548,-400.0,0.00016164,2]
[380999515,1755930749558,-400.0,0.00016164,2]
[380999516,1755930749568,-589.73,0.00016164,2]
[380999517,1755930749577,-400.0,0.00016164,2]
[380999518,1755930749586,-530.1,0.00016164,2]
[380999519,1755930749595,-683.39,0.00016164,2]
[380999520,1755930749604,-484.79,0.00016164,2]
[380999521,1755930749613,-643.13,0.00016164,2]
[380999522,1755930749623,-400.0,0.00016164,2]
[380999523,1755930749632,-400.0,0.00016164,2]
[380999524,1755930749641,-927.72,0.00016164,2]
[380999525,1755930749650,-400.0,0.00016164,2]
[380999526,1755930749659,-417.61,0.00016164,2]
[380999527,1755930749668,-558.89,0.00016164,2]
[380999528,1755930749787,-305.75080106,0.00016164,2]
[380999529,1755930749798,-433.09,0.00016164,2]
[380999530,1755930749807,-254.304402,0.00016164,2]
[380999531,1755930749816,-460.41,0.00016164,2]
[380999532,1755930749825,-400.0,0.00016164,2]
[380999533,1755930749835,-463.42,0.00016164,2]
[380999534,1755930749844,-400.13,0.00016164,2]
[380999535,1755930749853,-473.4,0.00016164,2]
[380999536,1755930749861,-400.0,0.00016164,2]
[380999537,1755930749871,-400.0,0.00016164,2]
[380999538,1755930749881,-400.0,0.00016164,2]
[380999539,1755930749890,-537.84,0.00016164,2]
[380999540,1755930749900,-598.61,0.00016164,2]
[380999541,1755930749909,-659.98,0.00016164,2]
[380999542,1755930749918,-400.0,0.00016164,2]
[380999543,1755930749927,-559.14,0.00016164,2]
[380999544,1755930749937,-666.69,0.00016164,2]
[380999545,1755930749946,-549.63,0.00016164,2]
[380999546,1755930749955,-1062.126313,0.00016164,2]
[380999547,1755930749969,-551.78,0.00016164,2]
[380999548,1755930749980,-400.0,0.00016164,2]
[380999549,1755930749990,-670.71,0.00016164,2]
[380999550,1755930749999,-488.75,0.00016164,2]
[380999551,1755930750009,-504.46,0.00016164,2]
[380999552,1755930750018,-498.06,0.00016164,2]
[380999553,1755930750027,-400.0,0.00016164,2]
[380999554,1755930750036,-1574.58,0.00016164,2]
[380999555,1755930750045,-523.65,0.00016164,2]
[380999556,1755930750055,-690.06,0.00016164,2]
[380999557,1755930750065,-483.37,0.00016164,2]
[380999558,1755930750074,-906.04,0.00016164,2]
[380999559,1755930750083,-478.28,0.00016164,2]
[380999560,1755930750092,-463.08,0.00016164,2]
[380999561,1755930750101,-400.0,0.00016164,2]
[380999562,1755930750110,-400.0,0.00016164,2]
[380999563,1755930750120,-896.65,0.00016164,2]
[380999564,1755930750130,-664.4,0.00016164,2]
[380999565,1755930750139,-485.14,0.00016164,2]
[380999566,1755930750148,-463.63,0.00016164,2]
[380999567,1755930750157,-400.0,0.00016164,2]
[380999568,1755930750166,-400.46,0.00016164,2]
[380999569,1755930750175,-522.33,0.00016164,2]
[380999570,1755930750185,-597.16,0.00016164,2]
[380999571,1755930750194,-634.29,0.00016164,2]
[380999572,1755930750203,-730.43,0.00016164,2]
[380999573,1755930750214,-400.0,0.00016164,2]
[380999574,1755930750224,-777.56,0.00016164,2]
[380999575,1755930750233,-406.13,0.00016164,2]
[380999576,1755930750242,-585.18,0.00016164,2]
[380999577,1755930750251,-400.0,0.00016164,2]
[380999578,1755930750261,-400.0,0.00016164,2]
[380999579,1755930750270,-406.67,0.00016164,2]
[380999580,1755930750281,-629.89,0.00016164,2]
[380999581,1755930750293,-400.0,0.00016164,2]
[380999582,1755930750314,-820.56,0.00016164,2]
[380999583,1755930750324,-677.66,0.00016164,2]
[380999584,1755930750333,-400.0,0.00016164,2]
[380999585,1755930750343,-400.0,0.00016164,2]
[380999586,1755930750352,-654.77,0.00016164,2]
[380999587,1755930750362,-504.2,0.00016164,2]
[380999588,1755930750371,-700.52,0.00016164,2]
[380999589,1755930750381,-522.25,0.00016164,2]
[380999590,1755930750390,-541.83,0.00016164,2]
[380999591,1755930750400,-924.13,0.00016164,2]
[380999592,1755930750410,-400.0,0.00016164,2]
[380999593,1755930750419,-626.52,0.00016164,2]
[380999594,1755930750429,-983.52,0.00016164,2]
[380999595,1755930750438,-400.0,0.00016164,2]
[380999596,1755930750448,-534.72,0.00016164,2]
[380999597,1755930750458,-400.0,0.00016164,2]
[380999598,1755930750467,-463.0,0.00016164,2]
[380999599,1755930750476,-810.94,0.00016164,2]
[380999600,1755930750486,-632.58,0.00016164,2]
[380999601,1755930750496,-1018.11,0.00016164,2]
[380999602,1755930750505,-459.77,0.00016164,2]
[380999603,1755930750515,-400.0,0.00016164,2]
[380999604,1755930750524,-400.0,0.00016164,2]
[380999605,1755930750534,-765.63,0.00016164,2]
[380999606,1755930750543,-814.39,0.00016164,2]
[380999607,1755930750552,-400.0,0.00016164,2]
[380999608,1755930750561,-464.59,0.00016164,2]
[380999609,1755930750571,-205.27989847,0.00016164,2]
[380999610,1755930750580,-744.29,0.00016164,2]
[380999611,1755930750589,-707.25,0.00016164,2]
[380999612,1755930750599,-506.42,0.00016164,2]
[380999613,1755930750608,-400.0,0.00016164,2]
[380999614,1755930750618,-414.09,0.00016164,2]
[380999615,1755930750627,-715.14,0.00016164,2]
[380999616,1755930750637,-1000.0,0.00016164,2]
[380999617,1755930750646,-738.62,0.00016164,2]
[380999618,1755930750655,-400.0,0.00016164,2]
[380999619,1755930750664,-802.16,0.00016164,2]
[380999620,1755930750673,-716.85,0.00016164,2]
[380999621,1755930750682,-400.0,0.00016164,2]
[380999622,1755930750691,-632.2,0.00016164,2]
[380999623,1755930750700,-933.05,0.00016164,2]
[380999624,1755930750711,-400.0,0.00016164,2]
[380999625,1755930750720,-667.21,0.00016164,2]
[380999626,1755930750730,-841.3,0.00016164,2]
[380999627,1755930750739,-212.56,0.00016164,2]
[380999628,1755930750748,-678.61,0.00016164,2]
[380999629,1755930750757,-400.0,0.00016164,2]
[380999630,1755930750766,-400.0,0.00016164,2]
[380999631,1755930750776,-449.99,0.00016164,2]
[380999632,1755930750785,-430.74,0.00016164,2]
[380999633,1755930750794,-519.22,0.00016164,2]
[380999634,1755930750803,-753.87,0.00016164,2]
[380999635,1755930750812,-578.08,0.00016164,2]
[380999636,1755930750822,-400.0,0.00016164,2]
[380999637,1755930750831,-762.2,0.00016164,2]
[380999638,1755930750841,-552.89,0.00016164,2]
[380999639,1755930750850,-400.0,0.00016164,2]
[380999640,1755930750859,-400.0,0.00016164,2]
[380999641,1755930750868,-756.24,0.00016164,2]
[380999642,1755930750878,-400.0,0.00016164,2]
[380999643,1755930750887,-832.04,0.00016164,2]
[380999644,1755930750896,-734.03,0.00016164,2]
[380999645,1755930750905,-881.58,0.00016164,2]
[380999646,1755930750914,-400.0,0.00016164,2]
[380999647,1755930750924,-1130.07,0.00016164,2]
[380999648,1755930750933,-607.46,0.00016164,2]
[380999649,1755930750942,-403.96,0.00016164,2]
[380999650,1755930750951,-1082.64,0.00016164,2]
[380999651,1755930750961,-641.12,0.00016164,2]
[380999652,1755930750970,-400.0,0.00016164,2]
[380999653,1755930750979,-711.56,0.00016164,2]
[380999654,1755930750988,-400.0,0.00016164,2]
[380999655,1755930750998,-400.0,0.00016164,2]
[380999656,1755930751008,-774.36,0.00016164,2]
[380999657,1755930751018,-400.0,0.00016164,2]
[380999658,1755930751029,-472.39,0.00016164,2]
[380999659,1755930751038,-744.18,0.00016164,2]
[380999660,1755930751048,-400.0,0.00016164,2]
[380999661,1755930751057,-541.28,0.00016164,2]
[380999662,1755930751068,-791.97,0.00016164,2]
[380999663,1755930751078,-976.58,0.00016164,2]
[380999664,1755930751088,-411.91,0.00016164,2]
[380999665,1755930751097,-690.96,0.00016164,2]
[380999666,1755930751107,-602.8,0.00016164,2]
[380999667,1755930751116,-905.63,0.00016164,2]
[380999668,1755930751126,-893.46,0.00016164,2]
[380999669,1755930751135,-433.28,0.00016164,2]
[380999670,1755930751145,-400.0,0.00016164,2]
[380999671,1755930751154,-664.51,0.00016164,2]
[380999672,1755930751163,-400.0,0.00016164,2]
[380999673,1755930751172,-610.58,0.00016164,2]
[380999674,1755930751182,-400.0,0.00016164,2]
[380999675,1755930751191,-621.35,0.00016164,2]
[380999676,1755930751201,-975.83,0.00016164,2]
[380999677,1755930751210,-520.12,0.00016164,2]
[380999678,1755930751220,-567.16,0.00016164,2]
[380999679,1755930751230,-437.71,0.00016164,2]
[380999680,1755930751239,-591.76,0.00016164,2]
[380999681,1755930751249,-629.55,0.00016164,2]
[380999682,1755930751258,-707.96,0.00016164,2]
[380999683,1755930751267,-976.57,0.00016164,2]
[380999684,1755930751277,-400.0,0.00016164,2]
[380999685,1755930751287,-548.63,0.00016164,2]
[380999686,1755930751297,-696.63,0.00016164,2]
[380999687,1755930751308,-548.08,0.00016164,2]
[380999688,1755930751317,-421.64,0.00016164,2]
[380999689,1755930751327,-400.0,0.00016164,2]
[380999690,1755930751337,-408.25,0.00016164,2]
[380999691,1755930751346,-1327.74,0.00016164,2]
[380999692,1755930751355,-666.95,0.00016164,2]
[380999693,1755930751365,-400.0,0.00016164,2]
[380999694,1755930751375,-400.0,0.00016164,2]
[380999695,1755930751385,-400.0,0.00016164,2]
[380999696,1755930751394,-478.81,0.00016164,2]
[380999697,1755930751403,-400.0,0.00016164,2]
[380999698,1755930751413,-475.87,0.00016164,2]
[380999699,1755930751423,-752.44,0.00016164,2]
[380999700,1755930751433,-553.32,0.00016164,2]
[380999701,1755930751442,-414.48,0.00016164,2]
[380999702,1755930751452,-598.85,0.00016164,2]
[380999703,1755930751462,-530.32281024,0.00016164,2]
[380999704,1755930751472,-418.3,0.00016164,2]
[380999705,1755930751482,-400.0,0.00016164,2]
[380999706,1755930751491,-558.79,0.00016164,2]
[380999707,1755930751500,-590.73,0.00016164,2]
[380999708,1755930751509,-400.0,0.00016164,2]
[380999709,1755930751519,-977.36,0.00016164,2]
[380999710,1755930751529,-400.0,0.00016164,2]
[380999711,1755930751538,-400.0,0.00016164,2]
[380999712,1755930751549,-400.0,0.00016164,2]
[380999713,1755930751558,-1058.0,0.00016164,2]
[380999714,1755930751568,-595.73,0.00016164,2]
[380999715,1755930751577,-792.12,0.00016164,2]
[380999716,1755930751587,-490.78,0.00016164,2]
[380999717,1755930751596,-400.0,0.00016164,2]
[380999718,1755930751605,-400.0,0.00016164,2]
[380999719,1755930751615,-400.0,0.00016164,2]
[380999720,1755930751625,-400.0,0.00016164,2]
[380999721,1755930751635,-664.29,0.00016164,2]
[380999722,1755930751644,-603.04,0.00016164,2]
[380999723,1755930751654,-894.08,0.00016164,2]
[380999724,1755930751663,-400.0,0.00016164,2]
[380999725,1755930751672,-419.15,0.00016164,2]
[380999726,1755930751681,-400.0,0.00016164,2]
[380999727,1755930751690,-538.29,0.00016164,2]
[380999728,1755930751699,-855.49,0.00016164,2]
[380999729,1755930751709,-400.0,0.00016164,2]
[380999730,1755930751718,-423.93,0.00016164,2]
[380999731,1755930751727,-400.0,0.00016164,2]
[380999732,1755930751736,-633.58,0.00016164,2]
[380999733,1755930751745,-509.54,0.00016164,2]
[380999734,1755930751755,-400.0,0.00016164,2]
[380999735,1755930751764,-400.0,0.00016164,2]
[380999736,1755930751773,-400.0,0.00016164,2]
[380999737,1755930751783,-3166.9,0.00016164,2]
[380999738,1755930751792,-400.0,0.00016164,2]
[380999739,1755930751802,-532.83,0.00016164,2]
[380999740,1755930751811,-400.0,0.00016164,2]
[380999741,1755930751821,-462.81,0.00016164,2]
[380999742,1755930751831,-487.36,0.00016164,2]
[380999743,1755930751840,-571.73,0.00016164,2]
[380999744,1755930751851,-781.23,0.00016164,2]
[380999745,1755930751862,-990.26,0.00016164,2]
[380999746,1755930751871,-400.0,0.00016164,2]
[380999747,1755930751882,-761.19,0.00016164,2]
[380999748,1755930751892,-712.9,0.00016164,2]
[380999749,1755930751901,-400.0,0.00016164,2]
[380999750,1755930751911,-400.0,0.00016164,2]
[380999751,1755930751920,-594.22,0.00016164,2]
[380999752,1755930751930,-713.0,0.00016164,2]
[380999753,1755930751940,-400.0,0.00016164,2]
[380999754,1755930751950,-736.28,0.00016164,2]
[380999755,1755930751960,-400.0,0.00016164,2]
[380999756,1755930751970,-715.03,0.00016164,2]
[380999757,1755930751980,-441.42,0.00016164,2]
[380999758,1755930751990,-400.0,0.00016164,2]
[380999759,1755930751999,-931.43,0.00016164,2]
[380999760,1755930752009,-602.5,0.00016164,2]
[380999761,1755930752019,-649.04,0.00016164,2]
[380999762,1755930752028,-553.23,0.00016164,2]
[380999763,1755930752038,-400.0,0.00016164,2]
[380999764,1755930752048,-400.0,0.00016164,2]
[380999765,1755930752059,-942.63,0.00016164,2]
[380999766,1755930752069,-419.63,0.00016164,2]
[380999767,1755930752078,-720.71,0.00016164,2]
[380999768,1755930752087,-624.59,0.00016164,2]
[380999769,1755930752096,-797.24,0.00016164,2]
[380999770,1755930752106,-400.0,0.00016164,2]
[380999771,1755930752116,-400.0,0.00016164,2]
[380999772,1755930752126,-400.0,0.00016164,2]
[380999773,1755930752136,-400.0,0.00016164,2]
[380999774,1755930752145,-587.49,0.00016164,2]
[380999775,1755930752155,-690.44,0.00016164,2]
[380999776,1755930752167,-692.13,0.00016164,2]
[380999777,1755930752177,-697.05,0.00016164,2]
[380999778,1755930752187,-731.85,0.00016164,2]
[380999779,1755930752197,-874.21,0.00016164,2]
[380999780,1755930752207,-542.89,0.00016164,2]
[380999781,1755930752216,-513.06,0.00016164,2]
[380999782,1755930752226,-460.59,0.00016164,2]
[380999783,1755930752236,-400.0,0.00016164,2]
[380999784,1755930752245,-764.63,0.00016164,2]
[380999785,1755930752256,-416.02,0.00016164,2]
[380999786,1755930752267,-512.62,0.00016164,2]
[380999787,1755930752277,-436.53,0.00016164,2]
[380999788,1755930752288,-418.83,0.00016164,2]
[380999789,1755930752299,-400.0,0.00016164,2]
[380999790,1755930752312,-692.03,0.00016164,2]
[380999791,1755930752322,-617.12,0.00016164,2]
[380999792,1755930752331,-1343.83,0.00016164,2]
[380999793,1755930752342,-400.0,0.00016164,2]
[380999794,1755930752351,-764.95,0.00016164,2]
[380999795,1755930752361,-400.0,0.00016164,2]
[380999796,1755930752370,-657.79,0.00016164,2]
[380999797,1755930752381,-1027.02,0.00016164,2]
[380999798,1755930752392,-677.4,0.00016164,2]
[380999799,1755930752402,-704.81,0.00016164,2]
[380999800,1755930752412,-400.0,0.00016164,2]
[380999801,1755930752421,-400.0,0.00016164,2]
[380999802,1755930752434,-400.0,0.00016164,2]
[380999803,1755930752444,-400.0,0.00016164,2]
[380999804,1755930752458,-400.0,0.00016164,2]
[380999805,1755930752468,-400.0,0.00016164,2]
[380999806,1755930752481,-817.2,0.00016164,2]
[380999807,1755930752490,-500.32,0.00016164,2]
[380999808,1755930752499,-400.0,0.00016164,2]
[380999809,1755930752509,-1019.45,0.00016164,2]
[380999810,1755930752519,-554.8,0.00016164,2]